[Event "3rd Memorial Warakomska 2019"]
[Site "Suwalki"]
[Date "2019.08.07"]
[Round "3.3"]
[White "Hnydiuk, Aleksander"]
[Black "Caspi, Israel"]
[Result "1/2-1/2"]
[ECO "E06"]
[WhiteElo "2412"]
[BlackElo "2458"]
[Annotator "ChessBase"]
[PlyCount "116"]
[EventDate "2019.08.05"]
[EventType "swiss"]
[EventCountry "POL"]
[SourceTitle "playchess.com"]
[Source "ChessBase"]
[SourceQuality "1"]
[TimeControl "40/5400+30:1800+30"]

1. Nf3 {[%emt 0:03:01]} Nf6 {[%emt 0:00:00]} 2. c4 {[%emt 0:00:08]} e6 {[%emt 0:00:00]} 3. g3 {[%emt 0:00:04]} d5 {[%emt 0:00:10]} 4. d4 {[%emt 0:00:06]} Be7 {[%emt 0:00:07]} 5. Bg2 {[%emt 0:00:08]} O-O {[%emt 0:00:07]} 6. Qc2 {[%emt 0:00:50]} c5 {[%emt 0:00:19]} 7. O-O {[%emt 0:00:24]} cxd4 {[%emt 0:00:04]} 8. Nxd4 {[%emt 0:00:10]} e5 {[%emt 0:00:07]} 9. Nf5 {[%emt 0:00:21]} d4 {[%emt 0:00:08]} 10. Nxe7+ {[%emt 0:00:42]} Qxe7 {[%emt 0:00:03]} 11. Bg5 {[%emt 0:00:07]} h6 {[%emt 0:00:08]} 12. Bxf6 {[%emt 0:00:06]} Qxf6 {[%emt 0:00:03]} 13. Nd2 {[%emt 0:00:53]} Nc6 {[%emt 0:00:05]} 14. c5 {[%emt 0:07:34]} Bf5 {[%emt 0:30:07]} 15. Qb3 {[%emt 0:07:52]} Qe7 {[%emt 0:01:58]} 16. Ne4 {[%emt 0:03:53]} Be6 {[%emt 0:11:55]} 17. Qb5 {[%emt 0:06:44]} f5 {[%emt 0:02:54]} 18. Nd6 {[%emt 0:00:35]} e4 {[%emt 0:00:06]} 19. Rfd1 {[%emt 0:25:39]} Rab8 {[%emt 0:11:33]} 20. Qa4 {[%emt 0:01:11]} Qf6 {[%emt 0:02:40]} 21. b4 {[%emt 0:04:27]} a6 {[%emt 0:02:34]} 22. Rab1 {[%emt 0:00:47]} Bd5 {[%emt 0:21:36]} 23. Qc2 {[%emt 0:00:48]} Qe5 {[%emt 0:03:36]} 24. a4 {[%emt 0:16:49]} b5 {[%emt 0:00:06]} 25. axb5 {[%emt 0:01:25]} axb5 {[%emt 0:00:25]} 26. Qb2 {[%emt 0:03:46]} f4 {[%emt 0:03:03]} 27. e3 {[%emt 0:00:37]} f3 {[%emt 0:02:04]} 28. Bf1 {[%emt 0:06:05]} d3 {[%emt 0:01:49]} 29. Qxe5 {[%emt 0:03:39]} Nxe5 {[%emt 0:00:06]} 30. Bh3 {[%emt 0:01:22]} g6 {[%emt 0:02:43]} 31. Ra1 {[%emt 0:00:13]} Ra8 {[%emt 0:02:50]} 32. Nxb5 {[%emt 0:00:55]} Bb3 {[%emt 0:00:33]} 33. Nc3 {[%emt 0:01:03]} g5 {[%emt 0:00:50]} 34. Nxe4 {[%emt 0:01:06]} g4 {[%emt 0:00:50]} 35. Bf1 {[%emt 0:01:36]} Bxd1 {[%emt 0:00:09]} 36. Rxd1 {[%emt 0:00:02]} Rfb8 {[%emt 0:00:51]} 37. h3 {[%emt 0:01:52]} h5 {[%emt 0:00:43]} 38. Nf6+ {[%emt 0:00:45]} Kf7 {[%emt 0:00:14]} 39. Nxh5 {[%emt 0:00:09]} Rxb4 {[%emt 0:00:15]} 40. Nf4 {[%emt 0:00:00]} d2 {[%emt 0:00:00]} 41. Nd3 {[%emt 0:12:59]} Nxd3 {[%emt 0:05:38]} 42. Bxd3 {[%emt 0:00:04]} Rb2 {[%emt 0:00:36]} 43. Bf5 {[%emt 0:09:50]} Ra5 {[%emt 0:11:26]} 44. Bxg4 {[%emt 0:00:18]} Rxc5 {[%emt 0:00:06]} 45. Bxf3 {[%emt 0:00:26]} Rc1 {[%emt 0:00:16]} 46. Kg2 {[%emt 0:00:51]} Kf6 {[%emt 0:01:55]} 47. h4 {[%emt 0:00:57]} Rxd1 {[%emt 0:01:34]} 48. Bxd1 {[%emt 0:00:01]} Rb1 {[%emt 0:00:07]} 49. Bg4 {[%emt 0:01:37]} Re1 {[%emt 0:02:32]} 50. Bf3 {[%emt 0:01:43]} Kf5 {[%emt 0:05:15]} 51. g4+ {[%emt 0:00:41]} Ke5 {[%emt 0:01:36]} 52. Kg3 {[%emt 0:05:20]} Rg1+ {[%emt 0:01:23]} 53. Kh2 {[%emt 0:00:02]} d1=Q {[%emt 0:01:50]} 54. Bxd1 {[%emt 0:00:02]} Rxd1 {[%emt 0:00:07]} 55. h5 {[%emt 0:01:29]} Ke4 {[%emt 0:01:12]} 56. Kg3 {[%emt 0:00:29]} Rg1+ {[%emt 0:01:21]} 57. Kh4 {[%emt 0:00:12]} Kf3 {[%emt 0:00:51]} 58. h6 {[%emt 0:00:27]} Rxg4+ {[%emt 0:00:17]} 1/2-1/2

[Event "3rd Memorial Warakomska 2019"]
[Site "Suwalki"]
[Date "2019.08.07"]
[Round "3.4"]
[White "Kaczmarek, Aleksander"]
[Black "Barski, Radoslaw"]
[Result "1-0"]
[ECO "B90"]
[WhiteElo "2389"]
[BlackElo "2468"]
[Annotator "ChessBase"]
[PlyCount "93"]
[EventDate "2019.08.05"]
[EventType "swiss"]
[EventCountry "POL"]
[SourceTitle "playchess.com"]
[Source "ChessBase"]
[SourceQuality "1"]
[TimeControl "40/5400+30:1800+30"]

1. e4 {[%emt 0:00:03]} c5 {[%emt 0:00:14]} 2. Nf3 {[%emt 0:00:21]} d6 {[%emt 0:00:08]} 3. d4 {[%emt 0:00:05]} cxd4 {[%emt 0:00:07]} 4. Nxd4 {[%emt 0:00:04]} Nf6 {[%emt 0:00:09]} 5. Nc3 {[%emt 0:00:05]} a6 {[%emt 0:00:02]} 6. Nb3 {[%emt 0:00:05]} g6 {[%emt 0:00:40]} 7. Be2 {[%emt 0:00:05]} Bg7 {[%emt 0:00:06]} 8. O-O {[%emt 0:00:04]} O-O {[%emt 0:00:17]} 9. Bg5 {[%emt 0:00:12]} Nbd7 {[%emt 0:05:23]} 10. Re1 {[%emt 0:00:13]} b5 {[%emt 0:07:53]} 11. Bf1 {[%emt 0:02:05]} Bb7 {[%emt 0:00:18]} 12. Rb1 {[%emt 0:11:50]} Rc8 {[%emt 0:06:48]} 13. Nd5 {[%emt 0:13:33]} e6 {[%emt 0:20:22]} 14. Nxf6+ {[%emt 0:05:22]} Nxf6 {[%emt 0:00:38]} 15. c3 {[%emt 0:04:52]} Qc7 {[%emt 0:04:14]} 16. f3 {[%emt 0:11:27]} Rfe8 {[%emt 0:13:43]} 17. Kh1 {[%emt 0:03:13]} h6 {[%emt 0:01:20]} 18. Bh4 {[%emt 0:01:22]} Nd7 {[%emt 0:02:26]} 19. Bg3 {[%emt 0:05:20]} Ne5 {[%emt 0:00:36]} 20. f4 {[%emt 0:00:26]} Nc4 {[%emt 0:00:18]} 21. Nd2 {[%emt 0:03:41]} f5 {[%emt 0:06:48]} 22. Bd3 {[%emt 0:04:14]} Qc6 {[%emt 0:14:25]} 23. Nxc4 {[%emt 0:00:38]} bxc4 {[%emt 0:00:05]} 24. Bc2 {[%emt 0:00:04]} Qc5 {[%emt 0:05:12]} 25. Qe2 {[%emt 0:03:48]} fxe4 {[%emt 0:01:30]} 26. Bxe4 {[%emt 0:00:10]} Bxe4 {[%emt 0:00:04]} 27. Qxe4 {[%emt 0:00:02]} Qf5 {[%emt 0:00:07]} 28. Qb7 {[%emt 0:01:51]} Rb8 {[%emt 0:00:19]} 29. Qf3 {[%emt 0:05:29]} d5 {[%emt 0:01:44]} 30. h3 {[%emt 0:01:51]} Rb7 {[%emt 0:02:28]} 31. b4 {[%emt 0:07:21]} Rf7 {[%emt 0:01:31]} 32. b5 {[%emt 0:04:41]} axb5 {[%emt 0:00:05]} 33. Rxb5 {[%emt 0:00:06]} g5 {[%emt 0:03:34]} 34. Rxd5 exd5 {[%emt 0:00:02]} 35. Rxe8+ {[%emt 0:01:43]} Kh7 {[%emt 0:00:03]} 36. Rd8 {[%emt 0:01:14]} gxf4 {[%emt 0:00:22]} 37. Rxd5 {[%emt 0:02:08]} Qb1+ {[%emt 0:00:05]} 38. Rd1 {[%emt 0:00:09]} Qc2 {[%emt 0:00:05]} 39. Bh4 {[%emt 0:00:00]} Bxc3 {[%emt 0:00:00]} 40. Rd6 {[%emt 0:00:00]} Be5 {[%emt 0:00:00]} 41. Qh5 {[%emt 0:14:24]} Qb1+ {[%emt 0:05:32]} 42. Kh2 {[%emt 0:00:16]} f3+ {[%emt 0:04:19]} 43. Qxe5 {[%emt 0:02:09]} fxg2 {[%emt 0:00:02]} 44. Be1 {[%emt 0:06:42]} g1=Q+ {[%emt 0:06:29]} 45. Kxg1 {[%emt 0:00:05]} Rg7+ {[%emt 0:00:08]} 46. Kh2 {[%emt 0:02:07]} Qxa2+ {[%emt 0:01:16]} 47. Bd2 {[%emt 0:01:06]} 1-0

[Event "3rd Memorial Warakomska 2019"]
[Site "Suwalki"]
[Date "2019.08.07"]
[Round "3.5"]
[White "Nasuta, Grzegorz"]
[Black "Kosakowski, Jakub"]
[Result "1-0"]
[ECO "C54"]
[WhiteElo "2529"]
[BlackElo "2394"]
[Annotator "ChessBase"]
[PlyCount "97"]
[EventDate "2019.08.05"]
[EventType "swiss"]
[EventCountry "POL"]
[SourceTitle "playchess.com"]
[Source "ChessBase"]
[SourceQuality "1"]
[TimeControl "40/5400+30:1800+30"]

1. e4 {[%emt 0:00:00]} e5 {[%emt 0:00:00]} 2. Nf3 {[%emt 0:00:00]} Nc6 {[%emt 0:00:00]} 3. Bc4 {[%emt 0:00:00]} Bc5 {[%emt 0:00:31]} 4. c3 {[%emt 0:00:33]} Nf6 {[%emt 0:00:20]} 5. d3 {[%emt 0:00:30]} O-O {[%emt 0:00:27]} 6. O-O {[%emt 0:00:45]} d5 {[%emt 0:00:08]} 7. exd5 {[%emt 0:00:05]} Nxd5 {[%emt 0:00:07]} 8. Re1 {[%emt 0:00:10]} Bg4 {[%emt 0:00:32]} 9. Nbd2 {[%emt 0:00:08]} Nb6 {[%emt 0:00:50]} 10. h3 {[%emt 0:00:08]} Bh5 {[%emt 0:02:02]} 11. Bb3 {[%emt 0:00:08]} Qxd3 {[%emt 0:18:48]} 12. Nxe5 {[%emt 0:00:31]} Qf5 {[%emt 0:05:39]} 13. Nef3 {[%emt 0:00:10]} Qd7 {[%emt 0:32:38]} 14. Ne4 {[%emt 0:03:16]} Qxd1 {[%emt 0:02:16]} 15. Bxd1 {[%emt 0:00:46]} Be7 {[%emt 0:00:06]} 16. Bf4 {[%emt 0:03:49]} Rac8 {[%emt 0:02:23]} 17. a4 {[%emt 0:36:00]} a5 {[%emt 0:03:58]} 18. Bb3 {[%emt 0:12:29]} Rfe8 {[%emt 0:02:28]} 19. Rad1 {[%emt 0:14:55]} Bf8 {[%emt 0:04:12]} 20. g4 {[%emt 0:03:48]} Bg6 {[%emt 0:00:13]} 21. Ng3 {[%emt 0:00:05]} Rxe1+ {[%emt 0:03:57]} 22. Nxe1 {[%emt 0:00:38]} Be7 {[%emt 0:00:44]} 23. Nf3 {[%emt 0:03:55]} Kf8 {[%emt 0:01:11]} 24. Nf5 {[%emt 0:09:41]} Bxf5 {[%emt 0:12:16]} 25. gxf5 {[%emt 0:00:01]} h6 {[%emt 0:01:36]} 26. Nd2 {[%emt 0:01:46]} Nd7 {[%emt 0:03:10]} 27. Ne4 {[%emt 0:01:01]} Nde5 {[%emt 0:00:50]} 28. f6 {[%emt 0:03:58]} Bxf6 {[%emt 0:01:00]} 29. Nxf6 gxf6 {[%emt 0:00:01]} 30. Be3 {[%emt 0:03:39]} b6 {[%emt 0:01:07]} 31. Bxh6+ {[%emt 0:01:12]} Ke7 {[%emt 0:00:02]} 32. Bf4 {[%emt 0:00:22]} Nd8 {[%emt 0:01:13]} 33. Re1 {[%emt 0:00:51]} Kd6 {[%emt 0:00:01]} 34. Rd1+ {[%emt 0:00:28]} Ke7 {[%emt 0:00:05]} 35. Re1 {[%emt 0:00:36]} Kd6 {[%emt 0:00:01]} 36. Bg3 {[%emt 0:00:51]} Ne6 {[%emt 0:01:32]} 37. Re3 {[%emt 0:00:01]} Rg8 {[%emt 0:01:20]} 38. Kf1 {[%emt 0:00:20]} Nd8 {[%emt 0:00:35]} 39. Rd3+ {[%emt 0:01:18]} Ke7 {[%emt 0:00:05]} 40. Re3 {[%emt 0:00:00]} Kd6 {[%emt 0:00:00]} 41. Rf3 {[%emt 0:10:39]} Ke7 {[%emt 0:04:46]} 42. Rf5 {[%emt 0:00:13]} Ndc6 {[%emt 0:07:08]} 43. Bd5 {[%emt 0:02:03]} Rd8 {[%emt 0:00:53]} 44. Bxc6 {[%emt 0:01:14]} Nxc6 {[%emt 0:00:05]} 45. Bxc7 {[%emt 0:00:09]} Rd2 {[%emt 0:00:06]} 46. Rb5 {[%emt 0:01:15]} Ke6 {[%emt 0:01:20]} 47. Rxb6 {[%emt 0:06:35]} Kd5 {[%emt 0:01:37]} 48. Bf4 {[%emt 0:00:11]} Rc2 {[%emt 0:00:26]} 49. Kg2 {[%emt 0:00:31]} 1-0

[Event "3rd Memorial Warakomska 2019"]
[Site "Suwalki"]
[Date "2019.08.07"]
[Round "3.6"]
[White "Shyam, Sundar M."]
[Black "Molenda, Marcin"]
[Result "1-0"]
[ECO "C45"]
[WhiteElo "2520"]
[BlackElo "2387"]
[Annotator "ChessBase"]
[PlyCount "183"]
[EventDate "2019.08.05"]
[EventType "swiss"]
[EventCountry "POL"]
[SourceTitle "playchess.com"]
[Source "ChessBase"]
[SourceQuality "1"]
[TimeControl "40/5400+30:1800+30"]

1. e4 {[%emt 0:00:00]} e5 {[%emt 0:00:00]} 2. Nf3 {[%emt 0:00:00]} Nc6 {[%emt 0:00:00]} 3. d4 {[%emt 0:00:00]} exd4 {[%emt 0:00:20]} 4. Nxd4 {[%emt 0:00:06]} Nf6 {[%emt 0:00:28]} 5. Nxc6 {[%emt 0:00:05]} bxc6 {[%emt 0:00:13]} 6. e5 {[%emt 0:00:04]} Qe7 {[%emt 0:00:46]} 7. Qe2 {[%emt 0:01:42]} Nd5 {[%emt 0:00:12]} 8. h4 {[%emt 0:00:10]} f6 {[%emt 0:17:32]} 9. c4 {[%emt 0:00:05]} Ba6 {[%emt 0:01:39]} 10. Rh3 {[%emt 0:00:06]} fxe5 {[%emt 0:16:39]} 11. Bg5 {[%emt 0:00:04]} Nf6 {[%emt 0:09:28]} 12. Re3 {[%emt 0:00:05]} O-O-O {[%emt 0:05:42]} 13. Rb3 {[%emt 0:00:04]} Qe6 {[%emt 0:08:49]} 14. Qe3 {[%emt 0:25:17]} c5 {[%emt 0:03:12]} 15. Nd2 {[%emt 0:00:30]} Bb7 {[%emt 0:00:56]} 16. Ra3 {[%emt 0:18:13]} a6 {[%emt 0:04:19]} 17. Bd3 {[%emt 0:11:40]} Qg4 {[%emt 0:05:48]} 18. Bxf6 {[%emt 0:04:33]} gxf6 {[%emt 0:00:27]} 19. Be4 {[%emt 0:00:04]} Bxe4 {[%emt 0:02:06]} 20. Qxe4 {[%emt 0:00:04]} Qxe4+ {[%emt 0:00:07]} 21. Nxe4 {[%emt 0:00:02]} f5 {[%emt 0:02:06]} 22. Ng3 {[%emt 0:02:52]} f4 {[%emt 0:01:33]} 23. Ne4 {[%emt 0:00:06]} Kb7 {[%emt 0:00:49]} 24. Rd1 {[%emt 0:04:14]} Be7 {[%emt 0:00:59]} 25. Ke2 {[%emt 0:10:56]} d6 {[%emt 0:00:10]} 26. h5 {[%emt 0:03:55]} Ra8 {[%emt 0:01:39]} 27. g4 {[%emt 0:01:34]} fxg3 {[%emt 0:03:57]} 28. Rxg3 {[%emt 0:00:14]} Kc6 {[%emt 0:03:12]} 29. Rg7 {[%emt 0:00:43]} Rae8 {[%emt 0:03:00]} 30. Rd3 {[%emt 0:00:53]} Bf8 {[%emt 0:02:46]} 31. Rf7 {[%emt 0:00:07]} Bh6 {[%emt 0:00:42]} 32. Ra3 {[%emt 0:02:49]} Ref8 {[%emt 0:02:11]} 33. Rxa6+ {[%emt 0:04:42]} Kb7 {[%emt 0:00:08]} 34. Rxf8 {[%emt 0:00:11]} Bxf8 {[%emt 0:01:17]} 35. Ra3 {[%emt 0:00:05]} Bh6 {[%emt 0:00:16]} 36. Rb3+ {[%emt 0:06:41]} Kc6 {[%emt 0:00:17]} 37. Nf6 {[%emt 0:00:40]} Rf8 {[%emt 0:02:52]} 38. Nd5 {[%emt 0:03:08]} Ra8 {[%emt 0:00:23]} 39. Rf3 {[%emt 0:01:55]} Bf4 {[%emt 0:01:49]} 40. a3 {[%emt 0:00:00]} Rb8 {[%emt 0:00:00]} 41. b4 {[%emt 0:03:42]} cxb4 {[%emt 0:14:42]} 42. axb4 {[%emt 0:00:21]} h6 {[%emt 0:12:48]} 43. Kd3 {[%emt 0:18:57]} Kd7 {[%emt 0:03:42]} 44. b5 {[%emt 0:01:09]} c6 {[%emt 0:00:15]} 45. Nxf4 {[%emt 0:00:05]} exf4 {[%emt 0:00:23]} 46. bxc6+ {[%emt 0:00:03]} Kxc6 {[%emt 0:00:06]} 47. Rxf4 {[%emt 0:00:02]} Rb3+ {[%emt 0:00:14]} 48. Kd4 {[%emt 0:00:10]} Rh3 {[%emt 0:00:03]} 49. Rf5 {[%emt 0:00:02]} Kd7 {[%emt 0:01:57]} 50. f4 {[%emt 0:03:51]} Ke6 {[%emt 0:00:32]} 51. Ra5 {[%emt 0:00:34]} Rh1 {[%emt 0:00:47]} 52. f5+ {[%emt 0:07:23]} Ke7 {[%emt 0:00:19]} 53. Ra7+ {[%emt 0:00:55]} Kf6 {[%emt 0:00:05]} 54. Ra6 {[%emt 0:00:23]} Rd1+ {[%emt 0:00:22]} 55. Ke4 {[%emt 0:00:01]} Kg5 {[%emt 0:00:44]} 56. Ra2 {[%emt 0:00:19]} Kf6 {[%emt 0:01:13]} 57. Ra6 {[%emt 0:00:43]} Kg5 {[%emt 0:00:09]} 58. Ra8 {[%emt 0:00:29]} Kf6 {[%emt 0:00:48]} 59. Rf8+ {[%emt 0:00:31]} Kg7 {[%emt 0:00:11]} 60. Rd8 {[%emt 0:00:39]} Kf6 {[%emt 0:00:01]} 61. Rg8 {[%emt 0:00:45]} Re1+ {[%emt 0:00:28]} 62. Kd5 {[%emt 0:00:01]} Rd1+ {[%emt 0:00:05]} 63. Ke4 {[%emt 0:00:07]} Re1+ {[%emt 0:00:02]} 64. Kd5 {[%emt 0:00:00]} Rd1+ {[%emt 0:00:07]} 65. Kc6 {[%emt 0:00:08]} Kxf5 {[%emt 0:01:18]} 66. Rg6 {[%emt 0:00:01]} Rd4 {[%emt 0:00:09]} 67. Kb5 {[%emt 0:00:22]} Rd1 {[%emt 0:00:51]} 68. Rxh6 {[%emt 0:00:05]} Rb1+ {[%emt 0:00:22]} 69. Kc6 {[%emt 0:00:17]} Rc1 {[%emt 0:00:06]} 70. Kd5 {[%emt 0:01:47]} Rd1+ {[%emt 0:00:02]} 71. Kc6 {[%emt 0:00:02]} Rc1 {[%emt 0:00:08]} 72. Kb5 {[%emt 0:01:43]} Rb1+ {[%emt 0:00:02]} 73. Ka4 {[%emt 0:00:04]} Rd1 {[%emt 0:03:35]} 74. Rh8 {[%emt 0:00:14]} Kg5 {[%emt 0:00:22]} 75. Kb4 {[%emt 0:00:41]} Rb1+ {[%emt 0:00:17]} 76. Kc3 {[%emt 0:00:17]} Rd1 {[%emt 0:00:03]} 77. Rh7 {[%emt 0:00:46]} Rc1+ {[%emt 0:00:32]} 78. Kb3 {[%emt 0:01:04]} Rd1 {[%emt 0:00:48]} 79. Rh8 {[%emt 0:00:46]} Rd3+ {[%emt 0:00:17]} 80. Kb4 {[%emt 0:00:09]} Rd1 {[%emt 0:00:04]} 81. h6 {[%emt 0:01:35]} Kg6 {[%emt 0:00:04]} 82. Kb5 {[%emt 0:00:14]} Rd4 {[%emt 0:00:39]} 83. h7 {[%emt 0:00:45]} Kg7 {[%emt 0:00:09]} 84. Rg8+ {[%emt 0:00:09]} Kxh7 {[%emt 0:00:05]} 85. Rg5 {[%emt 0:00:02]} Rd1 {[%emt 0:03:06]} 86. Rd5 {[%emt 0:00:05]} Rb1+ {[%emt 0:00:29]} 87. Kc6 {[%emt 0:00:03]} Kg7 {[%emt 0:00:35]} 88. Kxd6 {[%emt 0:00:23]} Kf7 {[%emt 0:00:14]} 89. Re5 {[%emt 0:00:46]} Rb6+ {[%emt 0:00:50]} 90. Kc7 {[%emt 0:00:16]} Rh6 {[%emt 0:00:30]} 91. c5 {[%emt 0:00:03]} Kf6 {[%emt 0:00:05]} 92. Re1 {[%emt 0:00:11]} 1-0

[Event "3rd Memorial Warakomska 2019"]
[Site "Suwalki"]
[Date "2019.08.07"]
[Round "3.7"]
[White "Zakhartsov, Viacheslav V."]
[Black "Lewtak, Damian"]
[Result "1-0"]
[ECO "A50"]
[WhiteElo "2518"]
[BlackElo "2354"]
[Annotator "ChessBase"]
[PlyCount "111"]
[EventDate "2019.08.05"]
[EventType "swiss"]
[EventCountry "POL"]
[SourceTitle "playchess.com"]
[Source "ChessBase"]
[SourceQuality "1"]
[TimeControl "40/5400+30:1800+30"]

1. d4 {[%emt 0:00:00]} Nf6 {[%emt 0:00:00]} 2. c4 {[%emt 0:00:00]} b6 {[%emt 0:00:02]} 3. Nc3 {[%emt 0:00:19]} Bb7 {[%emt 0:00:22]} 4. Qc2 {[%emt 0:04:18]} d5 {[%emt 0:09:30]} 5. cxd5 {[%emt 0:00:20]} Nxd5 {[%emt 0:00:08]} 6. Nf3 {[%emt 0:08:26]} e6 {[%emt 0:16:51]} 7. e4 {[%emt 0:00:49]} Nxc3 {[%emt 0:05:11]} 8. bxc3 {[%emt 0:00:14]} Be7 {[%emt 0:00:09]} 9. Bb5+ {[%emt 0:00:36]} c6 {[%emt 0:01:20]} 10. Bd3 {[%emt 0:00:29]} c5 {[%emt 0:05:11]} 11. O-O {[%emt 0:09:38]} cxd4 {[%emt 0:05:25]} 12. cxd4 {[%emt 0:05:17]} O-O {[%emt 0:00:15]} 13. Bb2 {[%emt 0:00:16]} h6 {[%emt 0:15:00]} 14. Qe2 {[%emt 0:13:29]} Nd7 {[%emt 0:10:19]} 15. Rad1 {[%emt 0:18:44]} Rc8 {[%emt 0:00:30]} 16. a3 {[%emt 0:00:18]} Qc7 {[%emt 0:01:06]} 17. Rfe1 {[%emt 0:03:20]} Rfd8 {[%emt 0:04:01]} 18. d5 {[%emt 0:05:57]} Nc5 {[%emt 0:04:35]} 19. Nd4 {[%emt 0:03:56]} Nxd3 {[%emt 0:11:18]} 20. Qxd3 {[%emt 0:00:12]} Bf6 {[%emt 0:03:56]} 21. Qh3 {[%emt 0:10:50]} exd5 {[%emt 0:02:56]} 22. e5 {[%emt 0:00:17]} Bxe5 {[%emt 0:00:24]} 23. Nb5 {[%emt 0:00:19]} Bxb2 {[%emt 0:01:14]} 24. Nxc7 {[%emt 0:00:09]} Rxc7 {[%emt 0:00:02]} 25. Qg3 {[%emt 0:04:04]} Rcd7 {[%emt 0:00:12]} 26. Re2 {[%emt 0:04:52]} Bf6 {[%emt 0:00:08]} 27. Rc2 {[%emt 0:01:47]} d4 {[%emt 0:00:15]} 28. Rc7 {[%emt 0:00:24]} Ba6 {[%emt 0:00:21]} 29. Rxd7 {[%emt 0:00:49]} Rxd7 {[%emt 0:00:06]} 30. Qb8+ {[%emt 0:00:28]} Kh7 {[%emt 0:00:14]} 31. Qf4 {[%emt 0:00:33]} Kg8 {[%emt 0:01:06]} 32. Qb8+ {[%emt 0:00:37]} Kh7 {[%emt 0:00:05]} 33. Qf4 {[%emt 0:00:03]} Kg8 {[%emt 0:01:25]} 34. Re1 {[%emt 0:02:44]} Rd8 {[%emt 0:01:29]} 35. Qc7 {[%emt 0:00:04]} d3 {[%emt 0:00:47]} 36. Qxd8+ {[%emt 0:00:07]} Bxd8 {[%emt 0:00:05]} 37. Re8+ {[%emt 0:00:03]} Kh7 {[%emt 0:00:10]} 38. Rxd8 {[%emt 0:00:04]} Kg6 {[%emt 0:01:41]} 39. Kf1 {[%emt 0:00:47]} Bc4 {[%emt 0:00:45]} 40. Ke1 {[%emt 0:00:00]} Kf5 {[%emt 0:00:00]} 41. Kd2 {[%emt 0:01:47]} Ke5 {[%emt 0:12:34]} 42. Kc3 {[%emt 0:04:29]} b5 {[%emt 0:01:18]} 43. Ra8 {[%emt 0:03:09]} h5 {[%emt 0:08:14]} 44. Rxa7 {[%emt 0:01:06]} Kd6 {[%emt 0:01:24]} 45. h4 {[%emt 0:01:46]} Kc5 {[%emt 0:01:01]} 46. Rd7 {[%emt 0:00:32]} g6 {[%emt 0:00:46]} 47. f3 {[%emt 0:02:19]} Kc6 {[%emt 0:02:51]} 48. Rd4 {[%emt 0:00:05]} Kb6 {[%emt 0:04:59]} 49. Kb4 {[%emt 0:04:23]} Kc6 {[%emt 0:00:48]} 50. a4 {[%emt 0:01:09]} Kb6 {[%emt 0:00:20]} 51. g4 {[%emt 0:01:53]} hxg4 {[%emt 0:00:20]} 52. fxg4 {[%emt 0:00:03]} Be6 {[%emt 0:00:15]} 53. axb5 {[%emt 0:00:44]} Bc8 {[%emt 0:01:04]} 54. h5 {[%emt 0:01:16]} gxh5 {[%emt 0:00:13]} 55. gxh5 {[%emt 0:00:03]} Bf5 {[%emt 0:00:06]} 56. h6 {[%emt 0:00:17]} 1-0

[Event "3rd Memorial Warakomska 2019"]
[Site "Suwalki"]
[Date "2019.08.07"]
[Round "3.8"]
[White "Sadzikowski, Daniel"]
[Black "Punin, Andrii"]
[Result "1-0"]
[ECO "D35"]
[WhiteElo "2503"]
[BlackElo "2305"]
[Annotator "ChessBase"]
[PlyCount "112"]
[EventDate "2019.08.05"]
[EventType "swiss"]
[EventCountry "POL"]
[SourceTitle "playchess.com"]
[Source "ChessBase"]
[SourceQuality "1"]
[TimeControl "40/5400+30:1800+30"]

1. c4 {[%emt 0:00:00]} e6 {[%emt 0:00:00]} 2. Nc3 {[%emt 0:00:31]} d5 {[%emt 0:00:00]} 3. d4 {[%emt 0:00:03]} Nf6 {[%emt 0:00:00]} 4. cxd5 {[%emt 0:00:05]} exd5 {[%emt 0:00:00]} 5. Bg5 {[%emt 0:00:04]} c6 {[%emt 0:00:07]} 6. e3 {[%emt 0:00:03]} Be7 {[%emt 0:00:08]} 7. Bd3 {[%emt 0:00:04]} Nbd7 {[%emt 0:00:14]} 8. Nge2 {[%emt 0:00:19]} h6 {[%emt 0:00:14]} 9. Bh4 {[%emt 0:00:06]} Nh5 {[%emt 0:00:09]} 10. Bxe7 {[%emt 0:00:04]} Qxe7 {[%emt 0:00:08]} 11. Qd2 {[%emt 0:00:36]} Nb6 {[%emt 0:00:12]} 12. b3 {[%emt 0:03:47]} Bd7 {[%emt 0:01:28]} 13. O-O {[%emt 0:00:18]} O-O {[%emt 0:00:06]} 14. Rae1 {[%emt 0:01:55]} Rae8 {[%emt 0:00:13]} 15. Bb1 {[%emt 0:02:47]} Qg5 {[%emt 0:03:42]} 16. Nf4 {[%emt 0:11:14]} Nc8 {[%emt 0:11:38]} 17. Nxh5 {[%emt 0:01:46]} Qxh5 {[%emt 0:00:09]} 18. e4 {[%emt 0:00:01]} dxe4 {[%emt 0:01:31]} 19. Nxe4 {[%emt 0:00:31]} Qd5 {[%emt 0:08:05]} 20. Nc5 {[%emt 0:30:40]} b6 {[%emt 0:02:47]} 21. Qd3 {[%emt 0:04:11]} g6 {[%emt 0:02:40]} 22. Ne4 {[%emt 0:00:22]} Kg7 {[%emt 0:01:57]} 23. Qg3 {[%emt 0:03:13]} Re7 {[%emt 0:10:29]} 24. Nc3 {[%emt 0:06:09]} Qg5 {[%emt 0:09:45]} 25. Rxe7 {[%emt 0:00:22]} Qxe7 {[%emt 0:01:11]} 26. Qe5+ {[%emt 0:02:21]} Qxe5 {[%emt 0:01:43]} 27. dxe5 {[%emt 0:00:02]} f6 {[%emt 0:03:48]} 28. Rd1 {[%emt 0:00:19]} Be6 {[%emt 0:00:30]} 29. Be4 {[%emt 0:01:00]} fxe5 {[%emt 0:01:49]} 30. Bxc6 {[%emt 0:00:24]} Ne7 {[%emt 0:00:43]} 31. Bd7 {[%emt 0:05:13]} Kf7 {[%emt 0:04:18]} 32. g4 {[%emt 0:08:38]} a6 {[%emt 0:07:15]} 33. Kg2 {[%emt 0:09:00]} Bxd7 {[%emt 0:05:43]} 34. Rxd7 {[%emt 0:00:01]} Rc8 {[%emt 0:00:12]} 35. Nd5 {[%emt 0:05:30]} Ke6 {[%emt 0:00:08]} 36. Rxe7+ {[%emt 0:00:08]} Kxd5 {[%emt 0:00:06]} 37. Rh7 {[%emt 0:00:14]} h5 {[%emt 0:02:55]} 38. gxh5 {[%emt 0:00:27]} gxh5 {[%emt 0:00:06]} 39. Rxh5 {[%emt 0:00:04]} Rc2 {[%emt 0:01:02]} 40. Rh6 {[%emt 0:00:00]} Rxa2 {[%emt 0:00:00]} 41. Rxb6 {[%emt 0:00:19]} e4 {[%emt 0:04:09]} 42. Kg3 {[%emt 0:09:28]} Rc2 {[%emt 0:03:24]} 43. h4 {[%emt 0:10:16]} Rc3+ {[%emt 0:00:30]} 44. Kg2 {[%emt 0:00:02]} Rc2 {[%emt 0:01:50]} 45. Kf1 {[%emt 0:00:11]} Rc1+ {[%emt 0:03:43]} 46. Ke2 {[%emt 0:00:02]} Rh1 {[%emt 0:00:23]} 47. Rxa6 {[%emt 0:01:18]} Rxh4 {[%emt 0:01:38]} 48. Ra1 {[%emt 0:01:22]} Rh3 {[%emt 0:01:33]} 49. Rb1 {[%emt 0:00:38]} Rc3 {[%emt 0:02:50]} 50. b4 {[%emt 0:03:10]} Kd4 {[%emt 0:03:18]} 51. Rb2 {[%emt 0:01:24]} Rh3 {[%emt 0:04:46]} 52. b5 {[%emt 0:00:38]} e3 {[%emt 0:00:47]} 53. b6 {[%emt 0:01:39]} exf2 {[%emt 0:06:14]} 54. b7 {[%emt 0:00:35]} Rh1 {[%emt 0:01:12]} 55. Rb4+ {[%emt 0:00:27]} Kc5 {[%emt 0:00:38]} 56. Kxf2 {[%emt 0:00:37]} Kd5 1-0